Workbook

Sheet Kiadások
B1: [Esemény neve] költségvetése | H1: KIADÁSOK
B3: ÖSSZES KIADÁS | G3: Becsült | H3: Tényleges
G4: =SUM(C11,C19,C25,C32,G11,G19,G24) -> 882.00 Ft | H4: =SUM(D11,D19,D25,D32,H11,H19,H24) -> 333.00 Ft
B6: Hely | C6: Becsült | D6: Tényleges | F6: Üdítő | G6: Becsült | H6: Tényleges
B7: Terembérlés díja | C7: 500.00 Ft | F7: Étel
B8: Személyzet a helyszínen | F8: Ital | G8: 20.00 Ft
B9: Eszközök | F9: Abroszok | H9: 20.00 Ft
B10: Asztalok és székek | F10: Személyzet és borravaló
B11: Összeg | C11: =SUBTOTAL(109,Táblázat1[Becsült]) -> 500.00 Ft | D11: =SUBTOTAL(109,Táblázat1[Tényleges]) -> 0.00 Ft | F11: Összeg | G11: =SUBTOTAL(109,Táblázat3[Becsült]) -> 20.00 Ft | H11: =SUBTOTAL(109,Táblázat3[Tényleges]) -> 20.00 Ft
B13: Dekoráció | C13: Becsült | D13: Tényleges | F13: Program | G13: Becsült | H13: Tényleges
B14: Virág | C14: 200.00 Ft | D14: 300.00 Ft | F14: Művészek
B15: Gyertyák | F15: Előadók | G15: 30.00 Ft
B16: Világítás | F16: Utazás
B17: Léggömbök | F17: Szállás
B18: Papírkellékek | F18: Egyéb
B19: Összeg | C19: =SUBTOTAL(109,Táblázat4[Becsült]) -> 200.00 Ft | D19: =SUBTOTAL(109,Táblázat4[Tényleges]) -> 300.00 Ft | F19: Összeg | G19: =SUBTOTAL(109,Táblázat5[Becsült]) -> 30.00 Ft | H19: =SUBTOTAL(109,Táblázat5[Tényleges]) -> 0.00 Ft
B21: Hirdetés | C21: Becsült | D21: Tényleges | F21: Díjak | G21: Becsült | H21: Tényleges
B22: Grafikus munka | F22: Szalagok/emléktáblák/trófeák
B23: Fénymásolás/nyomtatás | C23: 20.00 Ft | F23: Ajándékok | G23: 100.00 Ft
B24: Postaköltség | F24: Összeg | G24: =SUBTOTAL(109,Táblázat7[Becsült]) -> 100.00 Ft | H24: =SUBTOTAL(109,Táblázat7[Tényleges]) -> 0.00 Ft
B25: Összeg | C25: =SUBTOTAL(109,Táblázat6[Becsült]) -> 20.00 Ft | D25: =SUBTOTAL(109,Táblázat6[Tényleges]) -> 0.00 Ft
B27: Egyéb | C27: Becsült | D27: Tényleges
B28: Telefon | D28: 13.00 Ft
B29: Közlekedés | C29: 12.00 Ft
B30: Papíráru
B31: Faxolás
B32: Összeg | C32: =SUBTOTAL(109,Táblázat8[Becsült]) -> 12.00 Ft | D32: =SUBTOTAL(109,Táblázat8[Tényleges]) -> 13.00 Ft

Sheet Bevétel
B1: [Esemény neve] költségvetése | G1: BEVÉTEL
B3: ÖSSZES BEVÉTEL | F3: Becsült | G3: Tényleges
F4: =SUM(F11, F18, F25, F33) -> 1,936.00 Ft | G4: =SUM(G11,G18,G25, G33) -> 1,831.00 Ft
B6: BELÉPŐJEGYEK
B7: Becsült szám | C7: Tényleges szám | D7: Típus | E7: Ár | F7: Becsült bevétel | G7: Tényleges bevétel
B8: 300 | C8: 278 | D8: Felnőtt: | E8: 5.00 Ft | F8: =B8*E8 -> 1,500.00 Ft | G8: =C8*E8 -> 1,390.00 Ft
B9: 197 | C9: 195 | D9: Gyermek: | E9: 2.00 Ft | F9: =B9*E9 -> 394.00 Ft | G9: =C9*E9 -> 390.00 Ft
B10: 42 | C10: 51 | D10: Egyéb: | E10: 1.00 Ft | F10: =B10*E10 -> 42.00 Ft | G10: =C10*E10 -> 51.00 Ft
B11: Összeg | F11: =SUBTOTAL(109,Táblázat9[Becsült bevétel]) -> 1,936.00 Ft | G11: =SUBTOTAL(109,Táblázat9[Tényleges bevétel]) -> 1,831.00 Ft
B13: HIRDETÉSEK A PROGRAMFÜZETBEN
B14: Becsült szám | C14: Tényleges szám | D14: Típus | E14: Ár | F14: Becsült bevétel | G14: Tényleges bevétel
B15: 12 | D15: Címlap: | F15: =B15*E15 -> 0.00 Ft | G15: =C15*E15 -> 0.00 Ft
C16: 158 | D16: Féloldalas: | F16: =B16*E16 -> 0.00 Ft | G16: =C16*E16 -> 0.00 Ft
B17: 4 | D17: Negyedoldalas: | F17: =B17*E17 -> 0.00 Ft | G17: =C17*E17 -> 0.00 Ft
B18: Összeg | F18: =SUBTOTAL(109,Táblázat10[Becsült bevétel]) -> 0.00 Ft | G18: =SUBTOTAL(109,Táblázat10[Tényleges bevétel]) -> 0.00 Ft
B20: KIÁLLÍTÓK/ÁRUSOK
B21: Becsült szám | C21: Tényleges szám | D21: Típus | E21: Ár | F21: Becsült bevétel | G21: Tényleges bevétel
B22: 23 | D22: Nagy stand: | F22: =B22*E22 -> 0.00 Ft | G22: =C22*E22 -> 0.00 Ft
B23: 354 | D23: Közepes stand: | F23: =B23*E23 -> 0.00 Ft | G23: =C23*E23 -> 0.00 Ft
B24: 56 | D24: Kis stand: | F24: =B24*E24 -> 0.00 Ft | G24: =C24*E24 -> 0.00 Ft
B25: Összeg | F25: =SUBTOTAL(109,Táblázat11[Becsült bevétel]) -> 0.00 Ft | G25: =SUBTOTAL(109,Táblázat11[Tényleges bevétel]) -> 0.00 Ft
B27: TERMÉKEK ÉRTÉKESÍTÉSE
B28: Becsült szám | C28: Tényleges szám | D28: Típus | E28: Ár | F28: Becsült bevétel | G28: Tényleges bevétel
D29: Termékek: | F29: =B29*E29 -> 0.00 Ft | G29: =C29*E29 -> 0.00 Ft
B30: 123 | D30: Termékek: | F30: =B30*E30 -> 0.00 Ft | G30: =C30*E30 -> 0.00 Ft
D31: Termékek: | F31: =B31*E31 -> 0.00 Ft | G31: =C31*E31 -> 0.00 Ft
B32: 13 | D32: Termékek: | F32: =B32*E32 -> 0.00 Ft | G32: =C32*E32 -> 0.00 Ft
B33: Összeg | F33: =SUBTOTAL(109,Táblázat12[Becsült bevétel]) -> 0.00 Ft | G33: =SUBTOTAL(109,Táblázat12[Tényleges bevétel]) -> 0.00 Ft

Sheet Eredménykimutatás összegzése
B1: [Esemény neve] költségvetése | G1: PROFIT
G2: – Összegzés
C5: Becsült | D5: Tényleges
B6: Összes bevétel | C6: =Bevétel!F4 -> 1,936.00 Ft | D6: =Bevétel!G4 -> 1,831.00 Ft
B7: Összes kiadás | C7: =Kiadások!G4 -> 882.00 Ft | D7: =Kiadások!H4 -> 333.00 Ft
B9: Összes nyereség (vagy veszteség) | C9: =C6-C7 -> 1,054.00 Ft | D9: =D6-D7 -> 1,498.00 Ft
